[Event "Titled Tuesday Blitz May 24 Early 2022"]
[White "Srihari L R"]
[Black "Tologon tegin, Semetei"]
[WhiteFideId "46617116"]
[BlackFideId "13800574"]
[WhiteElo "2121"]
[BlackElo "2258"]
[Result "1-0"]
[Round "10"]
[TimeControl "180+1"]
[Date "2022.05.24"]
[WhiteClock "0:00:04"]
[BlackClock "0:00:01"]

1. d4 {[%clk 0:03:00]}  Nf6 {[%clk 0:02:58]} 2. c4 {[%clk 0:03:00]}  g6 {[%clk 0:02:58]} 3. Nc3 {[%clk 0:02:59]}  d5 {[%clk 0:02:57]} 4. cxd5 {[%clk 0:02:59]}  Nxd5 {[%clk 0:02:58]} 5. Bd2 {[%clk 0:03:00]}  Bg7 {[%clk 0:02:58]} 6. e4 {[%clk 0:03:00]}  Nxc3 {[%clk 0:02:57]} 7. Bxc3 {[%clk 0:03:00]}  O-O {[%clk 0:02:57]} 8. h4 {[%clk 0:03:00]}  c5 {[%clk 0:02:57]} 9. d5 {[%clk 0:02:59]}  Bxc3+ {[%clk 0:02:55]} 10. bxc3 {[%clk 0:03:00]}  e6 {[%clk 0:02:53]} 11. Bc4 {[%clk 0:02:55]}  exd5 {[%clk 0:02:53]} 12. Bxd5 {[%clk 0:02:53]}  Qe7 {[%clk 0:02:52]} 13. Nf3 {[%clk 0:02:49]}  Be6 {[%clk 0:02:51]} 14. O-O {[%clk 0:02:46]}  Bxd5 {[%clk 0:02:49]} 15. exd5 {[%clk 0:02:47]}  Qd6 {[%clk 0:02:45]} 16. c4 {[%clk 0:02:47]}  Nd7 {[%clk 0:02:45]} 17. Qd2 {[%clk 0:02:47]}  Rfe8 {[%clk 0:02:42]} 18. Rfe1 {[%clk 0:02:45]}  Kg7 {[%clk 0:02:34]} 19. Qb2+ {[%clk 0:02:39]}  Qf6 {[%clk 0:02:14]} 20. Qxb7 {[%clk 0:02:37]}  Nb6 {[%clk 0:02:13]} 21. Ng5 {[%clk 0:02:13]}  Nxc4 {[%clk 0:02:06]} 22. Ne6+ {[%clk 0:02:01]}  Kg8 {[%clk 0:02:05]} 23. Nxc5 {[%clk 0:02:00]}  Qxh4 {[%clk 0:01:38]} 24. Qc6 {[%clk 0:01:49]}  Rec8 {[%clk 0:01:32]} 25. Qb7 {[%clk 0:01:47]}  Nd6 {[%clk 0:01:30]} 26. Qd7 {[%clk 0:01:40]}  Qf6 {[%clk 0:01:25]} 27. Ne6 {[%clk 0:01:30]}  Ne4 {[%clk 0:01:19]} 28. f3 {[%clk 0:01:17]}  Rc2 {[%clk 0:01:06]} 29. Rab1 {[%clk 0:00:37]}  fxe6 {[%clk 0:00:35]} 30. Rxe4 {[%clk 0:00:31]}  Rac8 {[%clk 0:00:11]} 31. Qxe6+ {[%clk 0:00:19]}  Qxe6 {[%clk 0:00:11]} 32. dxe6 {[%clk 0:00:20]}  Rxa2 {[%clk 0:00:11]} 33. e7 {[%clk 0:00:14]}  Re8 {[%clk 0:00:11]} 34. Rb7 {[%clk 0:00:13]}  Ra6 {[%clk 0:00:09]} 35. g4 {[%clk 0:00:07]}  h6 {[%clk 0:00:08]} 36. Kg2 {[%clk 0:00:07]}  Kf7 {[%clk 0:00:09]} 37. Kg3 {[%clk 0:00:07]}  g5 {[%clk 0:00:06]} 38. Re5 {[%clk 0:00:07]}  Kf6 {[%clk 0:00:05]} 39. Rf5+ {[%clk 0:00:05]}  Kg6 {[%clk 0:00:05]} 40. Rf8 {[%clk 0:00:04]}  Rxe7 {[%clk 0:00:01]} 41. Rxe7 {[%clk 0:00:05]}  Rd6 {[%clk 0:00:01]} 42. Rfe8 {[%clk 0:00:04]} 1-0


[Site "https://www.chess.com"]

[Event "Titled Tuesday Blitz May 24 Early 2022"]
[White "Steenbekkers, Franck"]
[Black "Lauridsen, Jesper Morch"]
[WhiteFideId "1004220"]
[BlackFideId "1401890"]
[WhiteElo "2032"]
[BlackElo "2241"]
[Result "1-0"]
[Round "10"]
[TimeControl "180+1"]
[Date "2022.05.25"]
[WhiteClock "0:00:49"]
[BlackClock "0:00:02"]

1. e4 {[%clk 0:02:53]}  c5 {[%clk 0:02:59]} 2. Nf3 {[%clk 0:02:45]}  d6 {[%clk 0:02:59]} 3. d4 {[%clk 0:02:42]}  cxd4 {[%clk 0:02:59]} 4. Nxd4 {[%clk 0:02:42]}  Nf6 {[%clk 0:02:58]} 5. Nc3 {[%clk 0:02:41]}  g6 {[%clk 0:02:59]} 6. Be3 {[%clk 0:02:40]}  Bg7 {[%clk 0:02:59]} 7. f3 {[%clk 0:02:40]}  O-O {[%clk 0:02:59]} 8. Qd2 {[%clk 0:02:38]}  Nc6 {[%clk 0:03:00]} 9. O-O-O {[%clk 0:02:28]}  d5 {[%clk 0:02:49]} 10. exd5 {[%clk 0:02:18]}  Nxd5 {[%clk 0:02:47]} 11. Nxc6 {[%clk 0:02:17]}  bxc6 {[%clk 0:02:46]} 12. Bd4 {[%clk 0:02:17]}  Be6 {[%clk 0:02:14]} 13. Ne4 {[%clk 0:02:13]}  Rb8 {[%clk 0:02:03]} 14. Nc5 {[%clk 0:02:10]}  Nb4 {[%clk 0:01:47]} 15. a3 {[%clk 0:01:49]}  Na2+ {[%clk 0:01:34]} 16. Kb1 {[%clk 0:01:47]}  Qb6 {[%clk 0:01:27]} 17. Nxe6 {[%clk 0:01:40]}  Qxb2+ {[%clk 0:01:25]} 18. Bxb2 {[%clk 0:01:34]}  Rxb2+ {[%clk 0:01:24]} 19. Ka1 {[%clk 0:01:33]}  fxe6 {[%clk 0:01:04]} 20. Bc4 {[%clk 0:01:04]}  Nb4 {[%clk 0:00:04]} 21. Bxe6+ {[%clk 0:00:58]}  Kh8 {[%clk 0:00:04]} 22. axb4 {[%clk 0:00:54]}  Ra8 {[%clk 0:00:04]} 23. Qd8+ {[%clk 0:00:48]}  Rxd8 {[%clk 0:00:02]} 24. Rxd8+ {[%clk 0:00:49]} 1-0


[Site "https://www.chess.com"]

[Event "Titled Tuesday Blitz May 24 Early 2022"]
[White "Taboas Rodriguez, Daniel"]
[Black "Alinasab, Mobina"]
[WhiteFideId "2208466"]
[BlackFideId "12528897"]
[WhiteElo "2429"]
[BlackElo "2031"]
[Result "1/2-1/2"]
[Round "10"]
[TimeControl "180+1"]
[Date "2022.05.25"]
[WhiteClock "0:00:03"]
[BlackClock "0:00:12"]

1. d4 {[%clk 0:03:00]}  d5 {[%clk 0:02:56]} 2. Nf3 {[%clk 0:03:01]}  Nf6 {[%clk 0:02:56]} 3. c4 {[%clk 0:03:02]}  dxc4 {[%clk 0:02:56]} 4. e3 {[%clk 0:03:02]}  a6 {[%clk 0:02:53]} 5. Bxc4 {[%clk 0:03:02]}  b5 {[%clk 0:02:53]} 6. Be2 {[%clk 0:03:02]}  Bb7 {[%clk 0:02:53]} 7. O-O {[%clk 0:03:03]}  e6 {[%clk 0:02:52]} 8. a4 {[%clk 0:03:03]}  b4 {[%clk 0:02:50]} 9. b3 {[%clk 0:03:03]}  Nbd7 {[%clk 0:02:51]} 10. Bb2 {[%clk 0:03:03]}  c5 {[%clk 0:02:51]} 11. Nbd2 {[%clk 0:03:04]}  Be7 {[%clk 0:02:51]} 12. Rc1 {[%clk 0:03:04]}  O-O {[%clk 0:02:51]} 13. Nc4 {[%clk 0:03:03]}  cxd4 {[%clk 0:02:51]} 14. Nxd4 {[%clk 0:03:04]}  Rc8 {[%clk 0:02:51]} 15. Bf3 {[%clk 0:03:02]}  Bxf3 {[%clk 0:02:51]} 16. Qxf3 {[%clk 0:03:03]}  Nc5 {[%clk 0:02:50]} 17. Rfd1 {[%clk 0:02:40]}  Qd5 {[%clk 0:02:42]} 18. Nb6 {[%clk 0:02:37]}  Qxf3 {[%clk 0:02:40]} 19. gxf3 {[%clk 0:02:38]}  Rc7 {[%clk 0:02:33]} 20. Rc4 {[%clk 0:02:31]}  a5 {[%clk 0:02:27]} 21. Rdc1 {[%clk 0:02:30]}  Rb7 {[%clk 0:02:25]} 22. Nc6 {[%clk 0:02:26]}  Nxb3 {[%clk 0:02:07]} 23. Rd1 {[%clk 0:02:00]}  Bc5 {[%clk 0:01:58]} 24. Nxa5 {[%clk 0:01:48]}  Nxa5 {[%clk 0:01:40]} 25. Rxc5 {[%clk 0:01:48]}  Rxb6 {[%clk 0:01:30]} 26. Rxa5 {[%clk 0:01:48]}  Nd5 {[%clk 0:01:28]} 27. Bd4 {[%clk 0:01:46]}  Rb7 {[%clk 0:01:27]} 28. Rb1 {[%clk 0:01:41]}  Rc8 {[%clk 0:01:15]} 29. Rb5 {[%clk 0:01:39]}  Rcb8 {[%clk 0:00:49]} 30. Rxb7 {[%clk 0:01:36]}  Rxb7 {[%clk 0:00:49]} 31. a5 {[%clk 0:01:37]}  Nc7 {[%clk 0:00:48]} 32. Bb6 {[%clk 0:01:32]}  Nd5 {[%clk 0:00:45]} 33. Bc5 {[%clk 0:01:32]}  Rb5 {[%clk 0:00:44]} 34. e4 {[%clk 0:00:31]}  Rxc5 {[%clk 0:00:34]} 35. exd5 {[%clk 0:00:32]}  Rxa5 {[%clk 0:00:32]} 36. Rxb4 {[%clk 0:00:29]}  g6 {[%clk 0:00:29]} 37. dxe6 {[%clk 0:00:27]}  fxe6 {[%clk 0:00:30]} 38. Rb7 {[%clk 0:00:27]}  Rf5 {[%clk 0:00:27]} 39. Kg2 {[%clk 0:00:27]}  Rf7 {[%clk 0:00:27]} 40. Rb6 {[%clk 0:00:27]}  Re7 {[%clk 0:00:27]} 41. Kg3 {[%clk 0:00:28]}  Kf7 {[%clk 0:00:28]} 42. Kf4 {[%clk 0:00:28]}  Kf6 {[%clk 0:00:29]} 43. h4 {[%clk 0:00:29]}  Rc7 {[%clk 0:00:28]} 44. Rb4 {[%clk 0:00:29]}  Rc5 {[%clk 0:00:27]} 45. Re4 {[%clk 0:00:29]}  e5+ {[%clk 0:00:25]} 46. Kg4 {[%clk 0:00:28]}  h5+ {[%clk 0:00:15]} 47. Kg3 {[%clk 0:00:28]}  Kf5 {[%clk 0:00:15]} 48. Ra4 {[%clk 0:00:28]}  Rc1 {[%clk 0:00:15]} 49. Ra5 {[%clk 0:00:21]}  Rg1+ {[%clk 0:00:14]} 50. Kh2 {[%clk 0:00:22]}  Rf1 {[%clk 0:00:15]} 51. Kg2 {[%clk 0:00:22]}  Rb1 {[%clk 0:00:14]} 52. Rc5 {[%clk 0:00:21]}  Re1 {[%clk 0:00:14]} 53. Kg3 {[%clk 0:00:21]}  Rg1+ {[%clk 0:00:10]} 54. Kh2 {[%clk 0:00:21]}  Re1 {[%clk 0:00:10]} 55. Kg2 {[%clk 0:00:18]}  g5 {[%clk 0:00:09]} 56. hxg5 {[%clk 0:00:13]}  Kxg5 {[%clk 0:00:10]} 57. Rc8 {[%clk 0:00:13]}  h4 {[%clk 0:00:06]} 58. Rg8+ {[%clk 0:00:13]}  Kf5 {[%clk 0:00:06]} 59. Rh8 {[%clk 0:00:13]}  Kg5 {[%clk 0:00:07]} 60. Rg8+ {[%clk 0:00:13]}  Kf5 {[%clk 0:00:06]} 61. Rg4 {[%clk 0:00:13]}  Rd1 {[%clk 0:00:06]} 62. Rxh4 {[%clk 0:00:13]}  Ra1 {[%clk 0:00:07]} 63. Rh5+ {[%clk 0:00:13]}  Kf6 {[%clk 0:00:05]} 64. Rh8 {[%clk 0:00:13]}  Kf5 {[%clk 0:00:05]} 65. Rb8 {[%clk 0:00:13]}  Kf6 {[%clk 0:00:05]} 66. Rb5 {[%clk 0:00:10]}  Kf5 {[%clk 0:00:05]} 67. Kg3 {[%clk 0:00:11]}  Rg1+ {[%clk 0:00:05]} 68. Kh2 {[%clk 0:00:11]}  Rf1 {[%clk 0:00:06]} 69. Kg2 {[%clk 0:00:12]}  Re1 {[%clk 0:00:06]} 70. Rb4 {[%clk 0:00:11]}  Re2 {[%clk 0:00:06]} 71. Rc4 {[%clk 0:00:11]}  Re1 {[%clk 0:00:06]} 72. Ra4 {[%clk 0:00:10]}  Re2 {[%clk 0:00:06]} 73. Kf1 {[%clk 0:00:11]}  Rc2 {[%clk 0:00:06]} 74. Re4 {[%clk 0:00:11]}  Rc1+ {[%clk 0:00:07]} 75. Kg2 {[%clk 0:00:12]}  Rc2 {[%clk 0:00:07]} 76. Kg3 {[%clk 0:00:12]}  Rc1 {[%clk 0:00:07]} 77. Kg2 {[%clk 0:00:12]}  Rc2 {[%clk 0:00:08]} 78. Re1 {[%clk 0:00:12]}  Rb2 {[%clk 0:00:08]} 79. Kg3 {[%clk 0:00:12]}  Ra2 {[%clk 0:00:08]} 80. Re4 {[%clk 0:00:10]}  Ra1 {[%clk 0:00:08]} 81. Re2 {[%clk 0:00:09]}  Rg1+ {[%clk 0:00:08]} 82. Kh2 {[%clk 0:00:10]}  Ra1 {[%clk 0:00:08]} 83. Kg2 {[%clk 0:00:10]}  Ra3 {[%clk 0:00:09]} 84. Re3 {[%clk 0:00:10]}  Ra2 {[%clk 0:00:09]} 85. Rc3 {[%clk 0:00:09]}  Ra1 {[%clk 0:00:09]} 86. Rc8 {[%clk 0:00:09]}  Rb1 {[%clk 0:00:09]} 87. Rf8+ {[%clk 0:00:10]}  Kg5 {[%clk 0:00:09]} 88. Kg3 {[%clk 0:00:09]}  Rg1+ {[%clk 0:00:09]} 89. Kh2 {[%clk 0:00:10]}  Rb1 {[%clk 0:00:10]} 90. Kg2 {[%clk 0:00:10]}  Ra1 {[%clk 0:00:10]} 91. Rf7 {[%clk 0:00:08]}  Rb1 {[%clk 0:00:10]} 92. Rh7 {[%clk 0:00:06]}  Ra1 {[%clk 0:00:11]} 93. Rh1 {[%clk 0:00:07]}  Ra2 {[%clk 0:00:10]} 94. Rd1 {[%clk 0:00:06]}  Kf5 {[%clk 0:00:10]} 95. Kf1 {[%clk 0:00:06]}  Kf4 {[%clk 0:00:10]} 96. Rd3 {[%clk 0:00:06]}  Ra1+ {[%clk 0:00:09]} 97. Kg2 {[%clk 0:00:05]}  Ra2 {[%clk 0:00:10]} 98. Re3 {[%clk 0:00:06]}  Rb2 {[%clk 0:00:10]} 99. Re4+ {[%clk 0:00:06]}  Kf5 {[%clk 0:00:10]} 100. Kg3 {[%clk 0:00:07]}  Rb1 {[%clk 0:00:11]} 101. Rg4 {[%clk 0:00:04]}  Rg1+ {[%clk 0:00:11]} 102. Kh3 {[%clk 0:00:04]}  Rf1 {[%clk 0:00:11]} 103. Kg2 {[%clk 0:00:05]}  Rc1 {[%clk 0:00:11]} 104. Rh4 {[%clk 0:00:04]}  Rb1 {[%clk 0:00:12]} 105. Rc4 {[%clk 0:00:05]}  Ra1 {[%clk 0:00:12]} 106. Rc3 {[%clk 0:00:01]}  Rb1 {[%clk 0:00:12]} 107. Rd3 {[%clk 0:00:01]}  Rc1 {[%clk 0:00:12]} 108. Re3 {[%clk 0:00:02]}  Kf4 {[%clk 0:00:12]} 109. Re4+ {[%clk 0:00:03]}  Kf5 {[%clk 0:00:12]} 110. Rh4 {[%clk 0:00:03]}  Rb1 {[%clk 0:00:12]} 111. Rh1 {[%clk 0:00:04]}  Rb2 {[%clk 0:00:12]} 112. Re1 {[%clk 0:00:03]} 1/2-1/2


[Site "https://www.chess.com"]

[Event "Titled Tuesday Blitz May 24 Early 2022"]
[White "Tanenbaum, Zachary"]
[Black "Costachi, Mihnea"]
[WhiteFideId "2060850"]
[BlackFideId "1217518"]
[WhiteElo "2168"]
[BlackElo "2476"]
[Result "0-1"]
[Round "10"]
[TimeControl "180+1"]
[Date "2022.05.24"]
[WhiteClock "0:00:04"]
[BlackClock "0:01:10"]

1. e4 {[%clk 0:02:59]}  e5 {[%clk 0:03:00]} 2. Nf3 {[%clk 0:03:00]}  Nc6 {[%clk 0:03:00]} 3. Bc4 {[%clk 0:03:00]}  Bc5 {[%clk 0:03:00]} 4. c3 {[%clk 0:03:00]}  Nf6 {[%clk 0:03:00]} 5. d3 {[%clk 0:03:01]}  d6 {[%clk 0:03:00]} 6. Nbd2 {[%clk 0:03:01]}  a6 {[%clk 0:03:01]} 7. a4 {[%clk 0:03:02]}  h6 {[%clk 0:03:01]} 8. Nf1 {[%clk 0:03:02]}  Be6 {[%clk 0:02:59]} 9. Bxe6 {[%clk 0:03:02]}  fxe6 {[%clk 0:02:59]} 10. Ng3 {[%clk 0:03:03]}  O-O {[%clk 0:02:59]} 11. O-O {[%clk 0:03:03]}  Qe8 {[%clk 0:02:56]} 12. Be3 {[%clk 0:03:03]}  Ba7 {[%clk 0:02:54]} 13. Bxa7 {[%clk 0:03:00]}  Rxa7 {[%clk 0:02:55]} 14. d4 {[%clk 0:03:00]}  exd4 {[%clk 0:02:55]} 15. cxd4 {[%clk 0:03:01]}  Ra8 {[%clk 0:02:52]} 16. Qb3 {[%clk 0:02:49]}  Rb8 {[%clk 0:02:47]} 17. Rac1 {[%clk 0:02:43]}  Qf7 {[%clk 0:02:32]} 18. Rfd1 {[%clk 0:02:35]}  Kh8 {[%clk 0:02:24]} 19. d5 {[%clk 0:01:37]}  exd5 {[%clk 0:02:22]} 20. exd5 {[%clk 0:01:38]}  Ne5 {[%clk 0:02:22]} 21. Nxe5 {[%clk 0:01:37]}  dxe5 {[%clk 0:02:23]} 22. f3 {[%clk 0:01:28]}  Rfd8 {[%clk 0:02:21]} 23. Qc3 {[%clk 0:01:22]}  Rxd5 {[%clk 0:02:17]} 24. Rxd5 {[%clk 0:01:21]}  Qxd5 {[%clk 0:02:12]} 25. Qxc7 {[%clk 0:01:18]}  Qd4+ {[%clk 0:02:12]} 26. Kh1 {[%clk 0:01:17]}  Rd8 {[%clk 0:02:13]} 27. Re1 {[%clk 0:00:51]}  Rd7 {[%clk 0:02:03]} 28. Qb8+ {[%clk 0:00:51]}  Kh7 {[%clk 0:02:03]} 29. b3 {[%clk 0:00:38]}  Qc3 {[%clk 0:02:02]} 30. Rf1 {[%clk 0:00:27]}  Qxb3 {[%clk 0:01:49]} 31. Qxe5 {[%clk 0:00:26]}  Qxa4 {[%clk 0:01:47]} 32. Qf5+ {[%clk 0:00:26]}  Kh8 {[%clk 0:01:47]} 33. h3 {[%clk 0:00:20]}  Qc6 {[%clk 0:01:43]} 34. Re1 {[%clk 0:00:17]}  Qd5 {[%clk 0:01:35]} 35. Re5 {[%clk 0:00:16]}  Qd3 {[%clk 0:01:31]} 36. Ne4 {[%clk 0:00:14]}  Rd8 {[%clk 0:01:18]} 37. Nxf6 {[%clk 0:00:11]}  Qxf5 {[%clk 0:01:19]} 38. Rxf5 {[%clk 0:00:12]}  Rf8 {[%clk 0:01:18]} 39. Rd5 {[%clk 0:00:06]}  Rxf6 {[%clk 0:01:18]} 40. Rd7 {[%clk 0:00:06]}  Rb6 {[%clk 0:01:18]} 41. f4 {[%clk 0:00:07]}  a5 {[%clk 0:01:18]} 42. Rd5 {[%clk 0:00:04]}  a4 {[%clk 0:01:17]} 43. Ra5 {[%clk 0:00:03]}  Rb4 {[%clk 0:01:17]} 44. f5 {[%clk 0:00:03]}  Kg8 {[%clk 0:01:17]} 45. Ra7 {[%clk 0:00:03]}  Kf7 {[%clk 0:01:17]} 46. g4 {[%clk 0:00:04]}  Kf6 {[%clk 0:01:16]} 47. Kg2 {[%clk 0:00:04]}  Kg5 {[%clk 0:01:16]} 48. Kg3 {[%clk 0:00:04]}  Rb3+ {[%clk 0:01:16]} 49. Kg2 {[%clk 0:00:04]}  a3 {[%clk 0:01:17]} 50. Ra5 {[%clk 0:00:03]}  Kh4 {[%clk 0:01:17]} 51. Ra4 {[%clk 0:00:03]}  Rb2+ {[%clk 0:01:16]} 52. Kf3 {[%clk 0:00:04]}  a2 {[%clk 0:01:14]} 53. Kf4 {[%clk 0:00:03]}  b5 {[%clk 0:01:13]} 54. Ra3 {[%clk 0:00:04]}  Rb4+ {[%clk 0:01:12]} 55. Kf3 {[%clk 0:00:03]}  Ra4 {[%clk 0:01:13]} 56. Re3 {[%clk 0:00:03]}  a1=Q {[%clk 0:01:12]} 57. g5 {[%clk 0:00:04]}  Qf1# {[%clk 0:01:10]} 0-1


[Site "https://www.chess.com"]

[Event "Titled Tuesday Blitz May 24 Early 2022"]
[White "Tregubov, Pavel V."]
[Black "Kuderinov, Kirill"]
[WhiteFideId "4115341"]
[BlackFideId "13701568"]
[WhiteElo "2341"]
[BlackElo "2432"]
[Result "1-0"]
[Round "10"]
[TimeControl "180+1"]
[Date "2022.05.25"]
[WhiteClock "0:01:12"]
[BlackClock "0:00:35"]

1. e4 {[%clk 0:02:56]}  e6 {[%clk 0:02:59]} 2. d4 {[%clk 0:02:56]}  d5 {[%clk 0:03:00]} 3. exd5 {[%clk 0:02:57]}  exd5 {[%clk 0:03:01]} 4. Nf3 {[%clk 0:02:57]}  Nf6 {[%clk 0:03:01]} 5. Bd3 {[%clk 0:02:57]}  Bd6 {[%clk 0:03:01]} 6. Qe2+ {[%clk 0:02:57]}  Qe7 {[%clk 0:02:53]} 7. Qxe7+ {[%clk 0:02:56]}  Bxe7 {[%clk 0:02:54]} 8. Bf4 {[%clk 0:02:54]}  c6 {[%clk 0:02:46]} 9. O-O {[%clk 0:02:55]}  O-O {[%clk 0:02:42]} 10. Re1 {[%clk 0:02:55]}  Re8 {[%clk 0:02:41]} 11. Nbd2 {[%clk 0:02:55]}  Nbd7 {[%clk 0:02:32]} 12. a4 {[%clk 0:02:55]}  Nf8 {[%clk 0:02:31]} 13. h3 {[%clk 0:02:46]}  Ne6 {[%clk 0:02:24]} 14. Bh2 {[%clk 0:02:46]}  Bd7 {[%clk 0:02:19]} 15. a5 {[%clk 0:02:45]}  c5 {[%clk 0:02:14]} 16. c3 {[%clk 0:02:18]}  cxd4 {[%clk 0:02:11]} 17. cxd4 {[%clk 0:02:18]}  Bb4 {[%clk 0:02:11]} 18. Re2 {[%clk 0:02:10]}  g6 {[%clk 0:01:56]} 19. Nb3 {[%clk 0:02:08]}  Kg7 {[%clk 0:01:54]} 20. Ne5 {[%clk 0:02:04]}  Bc6 {[%clk 0:01:47]} 21. Nxc6 {[%clk 0:01:55]}  bxc6 {[%clk 0:01:48]} 22. Ba6 {[%clk 0:01:49]}  Rab8 {[%clk 0:01:33]} 23. Bxb8 {[%clk 0:01:48]}  Rxb8 {[%clk 0:01:34]} 24. Rc1 {[%clk 0:01:41]}  Bd6 {[%clk 0:01:29]} 25. Rxc6 {[%clk 0:01:35]}  Rxb3 {[%clk 0:01:14]} 26. Rxd6 {[%clk 0:01:35]}  Nxd4 {[%clk 0:01:14]} 27. Rd2 {[%clk 0:01:28]}  Nf5 {[%clk 0:01:13]} 28. Rc6 {[%clk 0:01:23]}  d4 {[%clk 0:01:05]} 29. Bd3 {[%clk 0:01:17]}  Ne7 {[%clk 0:00:50]} 30. Rc7 {[%clk 0:01:17]}  Ned5 {[%clk 0:00:50]} 31. Rxa7 {[%clk 0:01:17]}  Rb8 {[%clk 0:00:46]} 32. a6 {[%clk 0:01:15]}  Nb4 {[%clk 0:00:44]} 33. Rb7 {[%clk 0:01:13]}  Rxb7 {[%clk 0:00:37]} 34. axb7 {[%clk 0:01:13]}  Nd7 {[%clk 0:00:36]} 35. Bb5 {[%clk 0:01:11]}  Nb8 {[%clk 0:00:35]} 36. Rxd4 {[%clk 0:01:12]} 1-0


[Site "https://www.chess.com"]

[Event "Titled Tuesday Blitz May 24 Early 2022"]
[White "Vainio, Ville"]
[Black "Politov, Pavel Y."]
[WhiteFideId "507270"]
[BlackFideId "24110515"]
[WhiteElo "2214"]
[BlackElo "2090"]
[Result "1-0"]
[Round "10"]
[TimeControl "180+1"]
[Date "2022.05.25"]
[WhiteClock "0:00:14"]
[BlackClock "0:01:13"]

1. e4 {[%clk 0:03:00]}  c5 {[%clk 0:02:59]} 2. Nf3 {[%clk 0:03:01]}  d6 {[%clk 0:02:59]} 3. d4 {[%clk 0:03:01]}  cxd4 {[%clk 0:03:00]} 4. Nxd4 {[%clk 0:03:02]}  Nf6 {[%clk 0:03:01]} 5. Nc3 {[%clk 0:03:02]}  a6 {[%clk 0:03:02]} 6. Be2 {[%clk 0:03:03]}  e5 {[%clk 0:03:00]} 7. Nb3 {[%clk 0:03:03]}  Be6 {[%clk 0:03:00]} 8. f4 {[%clk 0:03:03]}  exf4 {[%clk 0:02:59]} 9. Bxf4 {[%clk 0:03:02]}  d5 {[%clk 0:02:54]} 10. e5 {[%clk 0:02:39]}  Ne4 {[%clk 0:02:53]} 11. Nxe4 {[%clk 0:02:33]}  dxe4 {[%clk 0:02:54]} 12. Qxd8+ {[%clk 0:02:27]}  Kxd8 {[%clk 0:02:55]} 13. Nd4 {[%clk 0:01:58]}  Nc6 {[%clk 0:02:44]} 14. Nxe6+ {[%clk 0:01:55]}  fxe6 {[%clk 0:02:43]} 15. Bc4 {[%clk 0:01:42]}  Ke7 {[%clk 0:02:39]} 16. O-O-O {[%clk 0:01:20]}  b5 {[%clk 0:02:29]} 17. Be2 {[%clk 0:00:46]}  h6 {[%clk 0:02:21]} 18. Rd6 {[%clk 0:00:39]}  Nd8 {[%clk 0:01:51]} 19. Rhd1 {[%clk 0:00:38]}  g6 {[%clk 0:01:47]} 20. a4 {[%clk 0:00:32]}  bxa4 {[%clk 0:01:43]} 21. Bxa6 {[%clk 0:00:24]}  g5 {[%clk 0:01:40]} 22. Bg3 {[%clk 0:00:15]}  Nf7 {[%clk 0:01:37]} 23. Rd7+ {[%clk 0:00:13]}  Ke8 {[%clk 0:01:37]} 24. Bb5 {[%clk 0:00:14]}  Ra5 {[%clk 0:01:13]} 25. Rd8+ {[%clk 0:00:13]}  Ke7 {[%clk 0:01:13]} 26. R1d7# {[%clk 0:00:14]} 1-0


[Site "https://www.chess.com"]

[Event "Titled Tuesday Blitz May 24 Early 2022"]
[White "Vajda, Levente"]
[Black "Sismeiro, Miguel"]
[WhiteFideId "1203975"]
[BlackFideId "1950975"]
[WhiteElo "2573"]
[BlackElo "2031"]
[Result "0-1"]
[Round "10"]
[TimeControl "180+1"]
[Date "2022.05.24"]
[WhiteClock "0:00:03"]
[BlackClock "0:00:08"]

1. e4 {[%clk 0:03:00]}  g6 {[%clk 0:02:51]} 2. d4 {[%clk 0:03:00]}  Bg7 {[%clk 0:02:52]} 3. Nc3 {[%clk 0:03:01]}  d5 {[%clk 0:02:51]} 4. e5 {[%clk 0:03:00]}  c6 {[%clk 0:02:51]} 5. Nf3 {[%clk 0:03:00]}  Bg4 {[%clk 0:02:49]} 6. h3 {[%clk 0:02:59]}  Bxf3 {[%clk 0:02:49]} 7. Qxf3 {[%clk 0:03:00]}  e6 {[%clk 0:02:50]} 8. h4 {[%clk 0:02:54]}  Qb6 {[%clk 0:02:00]} 9. Qd3 {[%clk 0:02:53]}  h5 {[%clk 0:01:56]} 10. Bd2 {[%clk 0:02:43]}  Ne7 {[%clk 0:01:52]} 11. Na4 {[%clk 0:02:40]}  Qc7 {[%clk 0:01:50]} 12. Bb4 {[%clk 0:02:21]}  Nf5 {[%clk 0:01:48]} 13. g3 {[%clk 0:02:11]}  a5 {[%clk 0:01:45]} 14. Bc5 {[%clk 0:02:05]}  Nd7 {[%clk 0:01:44]} 15. Bh3 {[%clk 0:02:06]}  b6 {[%clk 0:01:44]} 16. Ba3 {[%clk 0:01:58]}  b5 {[%clk 0:01:37]} 17. Bxf5 {[%clk 0:01:57]}  gxf5 {[%clk 0:01:31]} 18. Bd6 {[%clk 0:01:57]}  Qb7 {[%clk 0:01:11]} 19. Nc5 {[%clk 0:01:56]}  Nxc5 {[%clk 0:01:11]} 20. dxc5 {[%clk 0:01:56]}  b4 {[%clk 0:00:43]} 21. b3 {[%clk 0:01:56]}  Qa6 {[%clk 0:00:39]} 22. Qd1 {[%clk 0:01:52]}  Kd7 {[%clk 0:00:36]} 23. f3 {[%clk 0:01:45]}  f6 {[%clk 0:00:33]} 24. f4 {[%clk 0:01:31]}  fxe5 {[%clk 0:00:32]} 25. fxe5 {[%clk 0:01:31]}  Bh6 {[%clk 0:00:28]} 26. a3 {[%clk 0:01:16]}  Qb5 {[%clk 0:00:21]} 27. Qe2 {[%clk 0:01:12]}  Qb7 {[%clk 0:00:12]} 28. Kf2 {[%clk 0:01:02]}  Rag8 {[%clk 0:00:12]} 29. axb4 {[%clk 0:01:01]}  Qxb4 {[%clk 0:00:11]} 30. Ra4 {[%clk 0:00:56]}  Qc3 {[%clk 0:00:09]} 31. Qd3 {[%clk 0:00:57]}  Qxd3 {[%clk 0:00:08]} 32. cxd3 {[%clk 0:00:58]}  Bd2 {[%clk 0:00:09]} 33. Rha1 {[%clk 0:00:41]}  Ra8 {[%clk 0:00:08]} 34. R1a2 {[%clk 0:00:24]}  Bc3 {[%clk 0:00:08]} 35. d4 {[%clk 0:00:24]}  Rhg8 {[%clk 0:00:08]} 36. Rc2 {[%clk 0:00:24]}  Bb4 {[%clk 0:00:08]} 37. Ra1 {[%clk 0:00:16]}  Rg4 {[%clk 0:00:07]} 38. Rd1 {[%clk 0:00:17]}  Rag8 {[%clk 0:00:06]} 39. Rd3 {[%clk 0:00:17]}  f4 {[%clk 0:00:07]} 40. Kg2 {[%clk 0:00:10]}  Rxg3+ {[%clk 0:00:06]} 41. Rxg3 {[%clk 0:00:10]}  Rxg3+ {[%clk 0:00:07]} 42. Kh2 {[%clk 0:00:11]}  Rxb3 {[%clk 0:00:08]} 43. Rg2 {[%clk 0:00:12]}  Rg3 {[%clk 0:00:08]} 44. Rf2 {[%clk 0:00:10]}  Rg4 {[%clk 0:00:09]} 45. Kh3 {[%clk 0:00:07]}  Rxh4+ {[%clk 0:00:09]} 46. Kg2 {[%clk 0:00:07]}  Rg4+ {[%clk 0:00:09]} 47. Kf3 {[%clk 0:00:08]}  a4 {[%clk 0:00:10]} 48. Rb2 {[%clk 0:00:08]}  Bc3 {[%clk 0:00:06]} 49. Rb7+ {[%clk 0:00:08]}  Ke8 {[%clk 0:00:07]} 50. Ra7 {[%clk 0:00:07]}  Rg3+ {[%clk 0:00:07]} 51. Kxf4 {[%clk 0:00:06]}  Rg4+ {[%clk 0:00:07]} 52. Kf3 {[%clk 0:00:07]}  Rxd4 {[%clk 0:00:08]} 53. Re7+ {[%clk 0:00:05]}  Kd8 {[%clk 0:00:09]} 54. Rxe6 {[%clk 0:00:03]}  a3 {[%clk 0:00:08]} 55. Rh6 {[%clk 0:00:04]}  a2 {[%clk 0:00:07]} 56. e6 {[%clk 0:00:04]}  Rd3+ {[%clk 0:00:07]} 57. Ke2 {[%clk 0:00:04]}  a1=Q {[%clk 0:00:07]} 58. Kxd3 {[%clk 0:00:04]}  Bg7 {[%clk 0:00:05]} 59. e7+ {[%clk 0:00:04]}  Kd7 {[%clk 0:00:06]} 60. Rh7 {[%clk 0:00:03]}  Qd4+ {[%clk 0:00:06]} 61. Ke2 {[%clk 0:00:02]}  Qe4+ {[%clk 0:00:07]} 62. Kf2 {[%clk 0:00:02]}  Qxh7 {[%clk 0:00:08]} 63. e8=Q+ {[%clk 0:00:02]}  Kxe8 {[%clk 0:00:08]} 64. Bc7 {[%clk 0:00:03]}  Qf5+ {[%clk 0:00:08]} 0-1


[Site "https://www.chess.com"]